[Event "Titled Tuesday Blitz September 28 2021"]
[White "Gabrielian, Artur"]
[Black "Noboa Silva, Kevin"]
[WhiteFideId "4131002"]
[BlackFideId "3618471"]
[WhiteElo "2489"]
[BlackElo "2161"]
[Result "0-1"]
[Round "06"]
[TimeControl "180+1"]
[Date "2021.09.28"]
[WhiteClock "0:00:15"]
[BlackClock "0:00:20"]

1. e4 {[%clk 0:03:00]}  e6 {[%clk 0:02:59]} 2. d3 {[%clk 0:02:59]}  c5 {[%clk 0:02:59]} 3. Nf3 {[%clk 0:02:58]}  Nc6 {[%clk 0:02:59]} 4. g3 {[%clk 0:02:58]}  d6 {[%clk 0:02:59]} 5. Bg2 {[%clk 0:02:58]}  Nf6 {[%clk 0:03:00]} 6. O-O {[%clk 0:02:59]}  Be7 {[%clk 0:03:00]} 7. Re1 {[%clk 0:02:58]}  O-O {[%clk 0:03:00]} 8. c3 {[%clk 0:02:59]}  Bd7 {[%clk 0:03:00]} 9. d4 {[%clk 0:02:59]}  cxd4 {[%clk 0:03:00]} 10. cxd4 {[%clk 0:03:00]}  d5 {[%clk 0:03:01]} 11. e5 {[%clk 0:03:01]}  Ne4 {[%clk 0:03:01]} 12. Nc3 {[%clk 0:03:00]}  Nxc3 {[%clk 0:03:00]} 13. bxc3 {[%clk 0:03:01]}  Rc8 {[%clk 0:03:00]} 14. h4 {[%clk 0:03:01]}  h6 {[%clk 0:03:00]} 15. Bf4 {[%clk 0:02:58]}  Na5 {[%clk 0:02:56]} 16. Qc1 {[%clk 0:02:56]}  Re8 {[%clk 0:02:54]} 17. h5 {[%clk 0:02:51]}  Bf8 {[%clk 0:02:47]} 18. g4 {[%clk 0:02:51]}  Qc7 {[%clk 0:02:46]} 19. Re3 {[%clk 0:02:41]}  Nc4 {[%clk 0:02:44]} 20. Re2 {[%clk 0:02:42]}  Na3 {[%clk 0:02:37]} 21. Bd2 {[%clk 0:02:34]}  Bb5 {[%clk 0:02:33]} 22. Re1 {[%clk 0:02:33]}  Nc4 {[%clk 0:02:33]} 23. Bf4 {[%clk 0:02:29]}  Na3 {[%clk 0:02:22]} 24. Re3 {[%clk 0:02:28]}  Nc4 {[%clk 0:02:22]} 25. Re1 {[%clk 0:02:28]}  Na3 {[%clk 0:02:22]} 26. g5 {[%clk 0:01:41]}  Qxc3 {[%clk 0:02:18]} 27. gxh6 {[%clk 0:01:39]}  Qxc1 {[%clk 0:02:17]} 28. Raxc1 {[%clk 0:01:39]}  gxh6 {[%clk 0:02:16]} 29. Nh2 {[%clk 0:01:35]}  Nc2 {[%clk 0:02:06]} 30. Red1 {[%clk 0:01:35]}  Ba3 {[%clk 0:01:51]} 31. Rb1 {[%clk 0:01:35]}  Be2 {[%clk 0:01:43]} 32. Rd2 {[%clk 0:01:30]}  Bxh5 {[%clk 0:01:42]} 33. Rd3 {[%clk 0:01:24]}  Bg6 {[%clk 0:01:36]} 34. Rg3 {[%clk 0:01:20]}  Nxd4 {[%clk 0:01:28]} 35. Rxg6+ {[%clk 0:01:19]}  fxg6 {[%clk 0:01:24]} 36. Bxh6 {[%clk 0:01:18]}  Re7 {[%clk 0:01:18]} 37. Ng4 {[%clk 0:01:12]}  Rec7 {[%clk 0:01:15]} 38. Nf6+ {[%clk 0:01:12]}  Kh8 {[%clk 0:01:14]} 39. Kh2 {[%clk 0:01:02]}  Nf5 {[%clk 0:01:13]} 40. Bf4 {[%clk 0:00:59]}  Kg7 {[%clk 0:01:08]} 41. Rb3 {[%clk 0:00:48]}  Be7 {[%clk 0:01:06]} 42. Bh3 {[%clk 0:00:45]}  b6 {[%clk 0:00:54]} 43. Bg5 {[%clk 0:00:36]}  Rc3 {[%clk 0:00:48]} 44. Bxf5 {[%clk 0:00:20]}  Rxb3 {[%clk 0:00:42]} 45. Bxe6 {[%clk 0:00:21]}  Rh8+ {[%clk 0:00:40]} 46. Kg2 {[%clk 0:00:21]}  Rb2 {[%clk 0:00:38]} 47. Bxd5 {[%clk 0:00:19]}  Rd8 {[%clk 0:00:36]} 48. Be4 {[%clk 0:00:15]}  Rxa2 {[%clk 0:00:33]} 49. Be3 {[%clk 0:00:13]}  Bxf6 {[%clk 0:00:27]} 50. exf6+ {[%clk 0:00:13]}  Kxf6 {[%clk 0:00:27]} 51. Bf3 {[%clk 0:00:14]}  Rd3 {[%clk 0:00:25]} 52. Bf4 {[%clk 0:00:11]}  Rxf3 {[%clk 0:00:24]} 53. Kxf3 {[%clk 0:00:12]}  Kf5 {[%clk 0:00:22]} 54. Bc7 {[%clk 0:00:11]}  Ra3+ {[%clk 0:00:21]} 55. Ke2 {[%clk 0:00:12]}  b5 {[%clk 0:00:21]} 56. Bd6 {[%clk 0:00:11]}  Rb3 {[%clk 0:00:21]} 57. Kd2 {[%clk 0:00:11]}  a5 {[%clk 0:00:20]} 58. Bc5 {[%clk 0:00:12]}  a4 {[%clk 0:00:20]} 59. Kc2 {[%clk 0:00:12]}  Ke4 {[%clk 0:00:20]} 60. Bd6 {[%clk 0:00:12]}  Kf3 {[%clk 0:00:21]} 61. Bc5 {[%clk 0:00:12]}  g5 {[%clk 0:00:20]} 62. Be7 {[%clk 0:00:11]}  g4 {[%clk 0:00:20]} 63. Bc5 {[%clk 0:00:11]}  Ke4 {[%clk 0:00:20]} 64. Bd6 {[%clk 0:00:11]}  Kd5 {[%clk 0:00:20]} 65. Bf4 {[%clk 0:00:11]}  Kc4 {[%clk 0:00:20]} 66. Be5 {[%clk 0:00:11]}  Rf3 {[%clk 0:00:20]} 67. Bg3 {[%clk 0:00:09]}  Rxg3 {[%clk 0:00:20]} 68. fxg3 {[%clk 0:00:10]}  b4 {[%clk 0:00:21]} 69. Kb2 {[%clk 0:00:10]}  Kd3 {[%clk 0:00:22]} 70. Kc1 {[%clk 0:00:10]}  Kc3 {[%clk 0:00:21]} 71. Kd1 {[%clk 0:00:10]}  a3 {[%clk 0:00:20]} 72. Ke2 {[%clk 0:00:11]}  a2 {[%clk 0:00:20]} 73. Ke3 {[%clk 0:00:11]}  a1=Q {[%clk 0:00:21]} 74. Kf4 {[%clk 0:00:12]}  Qd1 {[%clk 0:00:20]} 75. Kg5 {[%clk 0:00:12]}  Qf3 {[%clk 0:00:20]} 76. Kh4 {[%clk 0:00:12]}  Kd4 {[%clk 0:00:20]} 77. Kg5 {[%clk 0:00:12]}  Qxg3 {[%clk 0:00:21]} 78. Kf5 {[%clk 0:00:12]}  Qf3+ {[%clk 0:00:21]} 79. Kg5 {[%clk 0:00:13]}  g3 {[%clk 0:00:20]} 80. Kh4 {[%clk 0:00:13]}  g2 {[%clk 0:00:19]} 81. Kg5 {[%clk 0:00:14]}  g1=Q+ {[%clk 0:00:19]} 82. Kh6 {[%clk 0:00:15]}  Qfh1# {[%clk 0:00:20]} 0-1


[Site "https://www.chess.com"]

[Event "Titled Tuesday Blitz September 28 2021"]
[White "Garcia Garcia, Alejandro"]
[Black "Szente Varga, Fruzsina"]
[WhiteFideId "3516334"]
[BlackFideId "712264"]
[WhiteElo "2131"]
[BlackElo "2106"]
[Result "1-0"]
[Round "06"]
[TimeControl "180+1"]
[Date "2021.09.28"]
[WhiteClock "0:00:10"]
[BlackClock "0:00:04"]

1. Nf3 {[%clk 0:03:00]}  d5 {[%clk 0:02:57]} 2. g3 {[%clk 0:03:01]}  Nf6 {[%clk 0:02:57]} 3. Bg2 {[%clk 0:03:01]}  g6 {[%clk 0:02:57]} 4. O-O {[%clk 0:03:02]}  Bg7 {[%clk 0:02:57]} 5. c4 {[%clk 0:03:02]}  c6 {[%clk 0:02:53]} 6. cxd5 {[%clk 0:03:02]}  cxd5 {[%clk 0:02:54]} 7. d4 {[%clk 0:03:02]}  O-O {[%clk 0:02:54]} 8. Nc3 {[%clk 0:03:02]}  Nc6 {[%clk 0:02:54]} 9. Ne5 {[%clk 0:03:02]}  Ng4 {[%clk 0:02:53]} 10. Nxc6 {[%clk 0:02:52]}  bxc6 {[%clk 0:02:54]} 11. Bf4 {[%clk 0:02:43]}  Qb6 {[%clk 0:02:37]} 12. h3 {[%clk 0:02:39]}  Nf6 {[%clk 0:02:33]} 13. Na4 {[%clk 0:02:36]}  Qb5 {[%clk 0:02:20]} 14. Be5 {[%clk 0:02:23]}  Ba6 {[%clk 0:02:15]} 15. Re1 {[%clk 0:02:22]}  Nd7 {[%clk 0:02:13]} 16. Bxg7 {[%clk 0:02:21]}  Kxg7 {[%clk 0:02:14]} 17. Rc1 {[%clk 0:02:13]}  Rac8 {[%clk 0:01:47]} 18. b3 {[%clk 0:02:08]}  f6 {[%clk 0:01:35]} 19. e4 {[%clk 0:01:58]}  dxe4 {[%clk 0:01:25]} 20. Rxe4 {[%clk 0:01:57]}  e5 {[%clk 0:01:20]} 21. dxe5 {[%clk 0:01:51]}  Nxe5 {[%clk 0:01:21]} 22. Rc5 {[%clk 0:01:21]}  Qb7 {[%clk 0:01:10]} 23. Rd4 {[%clk 0:01:18]}  Rf7 {[%clk 0:00:49]} 24. Rd6 {[%clk 0:01:02]}  Bb5 {[%clk 0:00:41]} 25. Nc3 {[%clk 0:00:51]}  Qb6 {[%clk 0:00:41]} 26. Rxb5 {[%clk 0:00:45]}  cxb5 {[%clk 0:00:33]} 27. Rxb6 {[%clk 0:00:44]}  axb6 {[%clk 0:00:34]} 28. Nxb5 {[%clk 0:00:43]}  Rd7 {[%clk 0:00:34]} 29. Qe2 {[%clk 0:00:37]}  Rc1+ {[%clk 0:00:33]} 30. Kh2 {[%clk 0:00:37]}  Rcd1 {[%clk 0:00:33]} 31. Qe3 {[%clk 0:00:31]}  R1d2 {[%clk 0:00:28]} 32. Qxb6 {[%clk 0:00:30]}  Rxa2 {[%clk 0:00:27]} 33. Nc3 {[%clk 0:00:28]}  Rc2 {[%clk 0:00:25]} 34. Nd5 {[%clk 0:00:27]}  Rf7 {[%clk 0:00:21]} 35. Qe6 {[%clk 0:00:25]}  Rxf2 {[%clk 0:00:19]} 36. h4 {[%clk 0:00:17]}  Nf3+ {[%clk 0:00:14]} 37. Kh3 {[%clk 0:00:16]}  Ng1+ {[%clk 0:00:15]} 38. Kh2 {[%clk 0:00:16]}  Nf3+ {[%clk 0:00:15]} 39. Kh1 {[%clk 0:00:17]}  Nd4 {[%clk 0:00:12]} 40. Qe3 {[%clk 0:00:17]}  Rxg2 {[%clk 0:00:05]} 41. Kxg2 {[%clk 0:00:16]}  Nf5 {[%clk 0:00:06]} 42. Qd3 {[%clk 0:00:16]}  Rd7 {[%clk 0:00:06]} 43. Kf3 {[%clk 0:00:14]}  h5 {[%clk 0:00:05]} 44. Qc4 {[%clk 0:00:13]}  Rd6 {[%clk 0:00:05]} 45. Nf4 {[%clk 0:00:13]}  Nd4+ {[%clk 0:00:04]} 46. Kg2 {[%clk 0:00:12]}  Nf5 {[%clk 0:00:04]} 47. Kf2 {[%clk 0:00:12]}  Rd2+ {[%clk 0:00:04]} 48. Ke1 {[%clk 0:00:12]}  Rd6 {[%clk 0:00:04]} 49. Qc7+ {[%clk 0:00:11]}  Kh6 {[%clk 0:00:04]} 50. Qf7 {[%clk 0:00:11]}  g5 {[%clk 0:00:04]} 51. Qg6# {[%clk 0:00:10]} 1-0


[Site "https://www.chess.com"]

[Event "Titled Tuesday Blitz September 28 2021"]
[White "Garrido Outon, Alex"]
[Black "Matamoros Franco, Carlos S."]
[WhiteFideId "24516279"]
[BlackFideId "3600017"]
[WhiteElo "2131"]
[BlackElo "2554"]
[Result "1-0"]
[Round "06"]
[TimeControl "180+1"]
[Date "2021.09.28"]
[WhiteClock "0:00:06"]
[BlackClock "0:00:04"]

1. e4 {[%clk 0:03:00]}  c5 {[%clk 0:02:58]} 2. Nf3 {[%clk 0:03:00]}  Nc6 {[%clk 0:02:58]} 3. d4 {[%clk 0:02:56]}  cxd4 {[%clk 0:02:58]} 4. Nxd4 {[%clk 0:02:57]}  e5 {[%clk 0:02:58]} 5. Nb5 {[%clk 0:02:57]}  d6 {[%clk 0:02:58]} 6. N1c3 {[%clk 0:02:54]}  a6 {[%clk 0:02:58]} 7. Na3 {[%clk 0:02:55]}  Be7 {[%clk 0:02:58]} 8. Nc4 {[%clk 0:02:52]}  b5 {[%clk 0:02:55]} 9. Ne3 {[%clk 0:02:52]}  Nf6 {[%clk 0:02:55]} 10. g3 {[%clk 0:02:48]}  h5 {[%clk 0:02:53]} 11. Bg2 {[%clk 0:02:36]}  h4 {[%clk 0:02:53]} 12. O-O {[%clk 0:02:36]}  h3 {[%clk 0:02:52]} 13. Bh1 {[%clk 0:02:36]}  Rb8 {[%clk 0:02:50]} 14. Ned5 {[%clk 0:02:20]}  Nxd5 {[%clk 0:02:40]} 15. Nxd5 {[%clk 0:02:20]}  Bg5 {[%clk 0:02:32]} 16. Bxg5 {[%clk 0:01:58]}  Qxg5 {[%clk 0:02:30]} 17. Nc7+ {[%clk 0:01:46]}  Ke7 {[%clk 0:02:15]} 18. Nd5+ {[%clk 0:01:47]}  Kf8 {[%clk 0:02:14]} 19. c3 {[%clk 0:01:42]}  Qd8 {[%clk 0:02:07]} 20. Qd3 {[%clk 0:01:39]}  Ne7 {[%clk 0:02:04]} 21. Ne3 {[%clk 0:01:32]}  Be6 {[%clk 0:01:46]} 22. Rfd1 {[%clk 0:01:31]}  Rb6 {[%clk 0:01:45]} 23. a4 {[%clk 0:01:26]}  Qb8 {[%clk 0:01:36]} 24. axb5 {[%clk 0:01:25]}  axb5 {[%clk 0:01:35]} 25. Ra3 {[%clk 0:01:01]}  g6 {[%clk 0:01:30]} 26. Bf3 {[%clk 0:00:35]}  Kg7 {[%clk 0:01:23]} 27. Bg4 {[%clk 0:00:35]}  Bxg4 {[%clk 0:01:12]} 28. Nxg4 {[%clk 0:00:36]}  b4 {[%clk 0:01:00]} 29. cxb4 {[%clk 0:00:35]}  Rxb4 {[%clk 0:01:01]} 30. Ra6 {[%clk 0:00:31]}  d5 {[%clk 0:00:51]} 31. Qf3 {[%clk 0:00:21]}  f5 {[%clk 0:00:30]} 32. exf5 {[%clk 0:00:19]}  gxf5 {[%clk 0:00:31]} 33. Ne3 {[%clk 0:00:17]}  Qc8 {[%clk 0:00:26]} 34. Ra7 {[%clk 0:00:12]}  Rb7 {[%clk 0:00:23]} 35. Rxb7 {[%clk 0:00:11]}  Qxb7 {[%clk 0:00:24]} 36. Nxf5+ {[%clk 0:00:12]}  Nxf5 {[%clk 0:00:25]} 37. Qxf5 {[%clk 0:00:13]}  Re8 {[%clk 0:00:21]} 38. Qg5+ {[%clk 0:00:10]}  Kf7 {[%clk 0:00:21]} 39. Qh5+ {[%clk 0:00:11]}  Kf8 {[%clk 0:00:21]} 40. Qxh3 {[%clk 0:00:09]}  Qxb2 {[%clk 0:00:20]} 41. Qf5+ {[%clk 0:00:09]}  Kg7 {[%clk 0:00:20]} 42. Qg5+ {[%clk 0:00:09]}  Kf8 {[%clk 0:00:20]} 43. Qf5+ {[%clk 0:00:08]}  Kg7 {[%clk 0:00:20]} 44. Rxd5 {[%clk 0:00:08]}  Qc1+ {[%clk 0:00:18]} 45. Kg2 {[%clk 0:00:09]}  Qc6 {[%clk 0:00:18]} 46. Qf3 {[%clk 0:00:07]}  Qe6 {[%clk 0:00:18]} 47. Qd3 {[%clk 0:00:06]}  e4 {[%clk 0:00:18]} 48. Rd7+ {[%clk 0:00:06]}  Kf8 {[%clk 0:00:18]} 49. Qd6+ {[%clk 0:00:06]}  Qxd6 {[%clk 0:00:18]} 50. Rxd6 {[%clk 0:00:07]}  e3 {[%clk 0:00:19]} 51. fxe3 {[%clk 0:00:07]}  Rxe3 {[%clk 0:00:20]} 52. Rf6+ {[%clk 0:00:07]}  Kg7 {[%clk 0:00:19]} 53. Rf4 {[%clk 0:00:07]}  Ra3 {[%clk 0:00:19]} 54. h4 {[%clk 0:00:08]}  Rb3 {[%clk 0:00:20]} 55. Kh3 {[%clk 0:00:09]}  Ra3 {[%clk 0:00:20]} 56. Rg4+ {[%clk 0:00:09]}  Kh7 {[%clk 0:00:20]} 57. Rf4 {[%clk 0:00:10]}  Rb3 {[%clk 0:00:20]} 58. Re4 {[%clk 0:00:10]}  Ra3 {[%clk 0:00:20]} 59. Rf4 {[%clk 0:00:11]}  Rb3 {[%clk 0:00:21]} 60. h5 {[%clk 0:00:11]}  Ra3 {[%clk 0:00:21]} 61. Kh4 {[%clk 0:00:12]}  Rb3 {[%clk 0:00:21]} 62. g4 {[%clk 0:00:13]}  Rb1 {[%clk 0:00:19]} 63. Rf7+ {[%clk 0:00:13]}  Kg8 {[%clk 0:00:19]} 64. Ra7 {[%clk 0:00:13]}  Rc1 {[%clk 0:00:19]} 65. h6 {[%clk 0:00:13]}  Rd1 {[%clk 0:00:17]} 66. Kh5 {[%clk 0:00:12]}  Kh8 {[%clk 0:00:14]} 67. Ra6 {[%clk 0:00:11]}  Kg8 {[%clk 0:00:12]} 68. Kg6 {[%clk 0:00:10]}  Rd8 {[%clk 0:00:11]} 69. g5 {[%clk 0:00:08]}  Kh8 {[%clk 0:00:11]} 70. Rf6 {[%clk 0:00:08]}  Kg8 {[%clk 0:00:10]} 71. Re6 {[%clk 0:00:06]}  Kh8 {[%clk 0:00:10]} 72. Kf5 {[%clk 0:00:06]}  Rd5+ {[%clk 0:00:09]} 73. Re5 {[%clk 0:00:07]}  Rd8 {[%clk 0:00:09]} 74. g6 {[%clk 0:00:07]}  Kg8 {[%clk 0:00:09]} 75. Kg5 {[%clk 0:00:08]}  Ra8 {[%clk 0:00:09]} 76. Rf5 {[%clk 0:00:08]}  Rb8 {[%clk 0:00:09]} 77. Kh5 {[%clk 0:00:08]}  Ra8 {[%clk 0:00:09]} 78. Kg4 {[%clk 0:00:09]}  Rb8 {[%clk 0:00:09]} 79. Kg5 {[%clk 0:00:10]}  Ra8 {[%clk 0:00:09]} 80. g7 {[%clk 0:00:05]}  Rb8 {[%clk 0:00:05]} 81. Rf6 {[%clk 0:00:05]}  Kh7 {[%clk 0:00:05]} 82. Rf8 {[%clk 0:00:06]}  Rb5+ {[%clk 0:00:04]} 83. Kf4 {[%clk 0:00:06]}  Rb4+ {[%clk 0:00:04]} 84. Ke3 {[%clk 0:00:06]}  Rg4 {[%clk 0:00:04]} 85. Rh8+ {[%clk 0:00:06]} 1-0


[Site "https://www.chess.com"]

[Event "Titled Tuesday Blitz September 28 2021"]
[White "Godzwon, Iwo"]
[Black "Bugayev, Vladimir"]
[WhiteFideId "21802483"]
[BlackFideId "30901480"]
[WhiteElo "2201"]
[BlackElo "2360"]
[Result "1-0"]
[Round "06"]
[TimeControl "180+1"]
[Date "2021.09.28"]
[WhiteClock "0:00:52"]
[BlackClock "0:00:01"]

1. c4 {[%clk 0:03:00]}  c5 {[%clk 0:02:59]} 2. Nf3 {[%clk 0:03:00]}  g6 {[%clk 0:02:59]} 3. Nc3 {[%clk 0:02:59]}  Bg7 {[%clk 0:02:59]} 4. e3 {[%clk 0:02:56]}  Nf6 {[%clk 0:02:55]} 5. Be2 {[%clk 0:02:56]}  O-O {[%clk 0:02:54]} 6. O-O {[%clk 0:02:56]}  Nc6 {[%clk 0:02:49]} 7. a3 {[%clk 0:02:53]}  d5 {[%clk 0:02:45]} 8. cxd5 {[%clk 0:02:53]}  Nxd5 {[%clk 0:02:44]} 9. Qc2 {[%clk 0:02:52]}  b6 {[%clk 0:02:27]} 10. b3 {[%clk 0:02:40]}  Bf5 {[%clk 0:02:09]} 11. e4 {[%clk 0:02:30]}  Nxc3 {[%clk 0:01:50]} 12. dxc3 {[%clk 0:02:29]}  Be6 {[%clk 0:01:51]} 13. Bb2 {[%clk 0:02:18]}  c4 {[%clk 0:01:22]} 14. b4 {[%clk 0:02:09]}  b5 {[%clk 0:01:17]} 15. Rad1 {[%clk 0:02:06]}  Qc8 {[%clk 0:01:16]} 16. Rd2 {[%clk 0:01:53]}  Rd8 {[%clk 0:01:12]} 17. Rfd1 {[%clk 0:01:52]}  Rxd2 {[%clk 0:01:11]} 18. Qxd2 {[%clk 0:01:53]}  a5 {[%clk 0:00:54]} 19. h3 {[%clk 0:01:46]}  axb4 {[%clk 0:00:51]} 20. cxb4 {[%clk 0:01:46]}  Bxb2 {[%clk 0:00:50]} 21. Qxb2 {[%clk 0:01:47]}  h6 {[%clk 0:00:34]} 22. Qc3 {[%clk 0:01:29]}  Qc7 {[%clk 0:00:25]} 23. Qe3 {[%clk 0:01:16]}  Kh7 {[%clk 0:00:20]} 24. Qc5 {[%clk 0:01:15]}  Qb7 {[%clk 0:00:16]} 25. h4 {[%clk 0:01:07]}  Rxa3 {[%clk 0:00:14]} 26. h5 {[%clk 0:01:08]}  g5 {[%clk 0:00:14]} 27. Rc1 {[%clk 0:01:01]}  Kg7 {[%clk 0:00:12]} 28. Bd1 {[%clk 0:00:59]}  Rd3 {[%clk 0:00:12]} 29. Bc2 {[%clk 0:00:59]}  Rd8 {[%clk 0:00:11]} 30. Nxg5 {[%clk 0:00:52]}  hxg5 {[%clk 0:00:07]} 31. Qxg5+ {[%clk 0:00:53]}  Kf8 {[%clk 0:00:07]} 32. h6 {[%clk 0:00:54]}  Nd4 {[%clk 0:00:04]} 33. h7 {[%clk 0:00:52]}  Ne2+ {[%clk 0:00:02]} 34. Kf1 {[%clk 0:00:52]}  Nxc1 {[%clk 0:00:01]} 35. h8=Q# {[%clk 0:00:52]} 1-0


[Site "https://www.chess.com"]

[Event "Titled Tuesday Blitz September 28 2021"]
[White "Havanecz, Bianka"]
[Black "Avila Pavas, Santiago"]
[WhiteFideId "704814"]
[BlackFideId "4437128"]
[WhiteElo "2393"]
[BlackElo "2292"]
[Result "0-1"]
[Round "06"]
[TimeControl "180+1"]
[Date "2021.09.28"]
[WhiteClock "0:00:07"]
[BlackClock "0:00:27"]

1. d4 {[%clk 0:03:00]}  d5 {[%clk 0:02:58]} 2. c4 {[%clk 0:02:58]}  c6 {[%clk 0:02:58]} 3. Nf3 {[%clk 0:02:55]}  Nf6 {[%clk 0:02:56]} 4. Nc3 {[%clk 0:02:53]}  dxc4 {[%clk 0:02:55]} 5. a4 {[%clk 0:02:53]}  Bg4 {[%clk 0:02:49]} 6. e3 {[%clk 0:02:46]}  e6 {[%clk 0:02:43]} 7. Bxc4 {[%clk 0:02:46]}  Bb4 {[%clk 0:02:43]} 8. O-O {[%clk 0:02:43]}  a5 {[%clk 0:02:40]} 9. h3 {[%clk 0:02:36]}  Bh5 {[%clk 0:02:33]} 10. Be2 {[%clk 0:02:09]}  Nbd7 {[%clk 0:02:24]} 11. Bd2 {[%clk 0:01:39]}  O-O {[%clk 0:02:20]} 12. Na2 {[%clk 0:01:29]}  Bd6 {[%clk 0:01:48]} 13. b4 {[%clk 0:01:25]}  Ne4 {[%clk 0:01:48]} 14. b5 {[%clk 0:01:19]}  cxb5 {[%clk 0:01:38]} 15. axb5 {[%clk 0:00:56]}  Ndf6 {[%clk 0:01:29]} 16. Nc3 {[%clk 0:00:47]}  Nxd2 {[%clk 0:01:19]} 17. Nxd2 {[%clk 0:00:48]}  Bxe2 {[%clk 0:01:18]} 18. Qxe2 {[%clk 0:00:49]}  Bb4 {[%clk 0:01:15]} 19. Na4 {[%clk 0:00:43]}  Rc8 {[%clk 0:01:12]} 20. b6 {[%clk 0:00:41]}  Rc2 {[%clk 0:00:57]} 21. Rfd1 {[%clk 0:00:32]}  Qd5 {[%clk 0:00:52]} 22. Qd3 {[%clk 0:00:25]}  Rfc8 {[%clk 0:00:53]} 23. Nf3 {[%clk 0:00:17]}  Ne4 {[%clk 0:00:51]} 24. Rf1 {[%clk 0:00:15]}  f6 {[%clk 0:00:46]} 25. Ne1 {[%clk 0:00:10]}  Rd2 {[%clk 0:00:42]} 26. Qb1 {[%clk 0:00:10]}  Bc3 {[%clk 0:00:26]} 27. Nxc3 {[%clk 0:00:10]}  Nxc3 {[%clk 0:00:27]} 28. Qc1 {[%clk 0:00:07]}  Ne2+ {[%clk 0:00:27]} 0-1


[Site "https://www.chess.com"]

[Event "Titled Tuesday Blitz September 28 2021"]
[White "Hjartarson, Johann"]
[Black "Visakh N R"]
[WhiteFideId "2300044"]
[BlackFideId "25012223"]
[WhiteElo "2502"]
[BlackElo "2454"]
[Result "0-1"]
[Round "06"]
[TimeControl "180+1"]
[Date "2021.09.28"]
[WhiteClock "0:00:05"]
[BlackClock "0:00:27"]

1. e4 {[%clk 0:03:00]}  c6 {[%clk 0:02:59]} 2. d4 {[%clk 0:02:59]}  d5 {[%clk 0:03:00]} 3. e5 {[%clk 0:02:59]}  Bf5 {[%clk 0:02:59]} 4. Nd2 {[%clk 0:02:59]}  e6 {[%clk 0:02:58]} 5. Nb3 {[%clk 0:02:58]}  Nd7 {[%clk 0:02:57]} 6. Nf3 {[%clk 0:02:57]}  h6 {[%clk 0:02:52]} 7. Be3 {[%clk 0:02:54]}  Ne7 {[%clk 0:02:52]} 8. Be2 {[%clk 0:02:51]}  g5 {[%clk 0:02:51]} 9. O-O {[%clk 0:02:51]}  Bg7 {[%clk 0:02:51]} 10. Ne1 {[%clk 0:02:49]}  O-O {[%clk 0:02:46]} 11. Nd3 {[%clk 0:02:48]}  Bg6 {[%clk 0:02:33]} 12. c3 {[%clk 0:02:46]}  b6 {[%clk 0:02:30]} 13. f4 {[%clk 0:02:44]}  Nf5 {[%clk 0:02:29]} 14. Bf2 {[%clk 0:02:44]}  c5 {[%clk 0:02:15]} 15. dxc5 {[%clk 0:02:39]}  gxf4 {[%clk 0:02:14]} 16. Nxf4 {[%clk 0:02:37]}  Nxe5 {[%clk 0:02:13]} 17. cxb6 {[%clk 0:02:29]}  axb6 {[%clk 0:02:12]} 18. Nd4 {[%clk 0:02:28]}  Qg5 {[%clk 0:01:57]} 19. Nxg6 {[%clk 0:02:18]}  Qxg6 {[%clk 0:01:47]} 20. Nxf5 {[%clk 0:02:17]}  Qxf5 {[%clk 0:01:39]} 21. Bxb6 {[%clk 0:02:11]}  Qe4 {[%clk 0:01:38]} 22. Bd4 {[%clk 0:02:07]}  Rab8 {[%clk 0:01:37]} 23. b3 {[%clk 0:01:58]}  Nc6 {[%clk 0:01:37]} 24. Bxg7 {[%clk 0:01:57]}  Qe3+ {[%clk 0:01:37]} 25. Kh1 {[%clk 0:01:56]}  Kxg7 {[%clk 0:01:37]} 26. Rf3 {[%clk 0:01:55]}  Qe5 {[%clk 0:01:37]} 27. Qd2 {[%clk 0:01:53]}  f5 {[%clk 0:01:30]} 28. Raf1 {[%clk 0:01:52]}  Rf6 {[%clk 0:01:14]} 29. Re3 {[%clk 0:01:46]}  Qd6 {[%clk 0:01:13]} 30. Bh5 {[%clk 0:01:46]}  Kh8 {[%clk 0:01:02]} 31. g3 {[%clk 0:01:38]}  Rbf8 {[%clk 0:01:01]} 32. Be2 {[%clk 0:01:26]}  d4 {[%clk 0:00:58]} 33. cxd4 {[%clk 0:01:25]}  Nxd4 {[%clk 0:00:58]} 34. Bc4 {[%clk 0:01:22]}  e5 {[%clk 0:00:57]} 35. Qg2 {[%clk 0:01:19]}  f4 {[%clk 0:00:46]} 36. gxf4 {[%clk 0:01:17]}  exf4 {[%clk 0:00:46]} 37. Rd3 {[%clk 0:01:13]}  Qe5 {[%clk 0:00:38]} 38. Rfd1 {[%clk 0:01:03]}  f3 {[%clk 0:00:35]} 39. Qf2 {[%clk 0:01:00]}  Ne2 {[%clk 0:00:33]} 40. Rd8 {[%clk 0:00:53]}  Qg5 {[%clk 0:00:33]} 41. Bxe2 {[%clk 0:00:48]}  fxe2 {[%clk 0:00:29]} 42. Rxf8+ {[%clk 0:00:47]}  Kg7 {[%clk 0:00:29]} 43. Rg1 {[%clk 0:00:09]}  Kxf8 {[%clk 0:00:27]} 44. Qa7 {[%clk 0:00:05]}  Qd5+ {[%clk 0:00:27]} 0-1


[Site "https://www.chess.com"]

[Event "Titled Tuesday Blitz September 28 2021"]
[White "Iskusnyh, Sergei"]
[Black "Al-Tarboush, Ward"]
[WhiteFideId "4120027"]
[BlackFideId "7601450"]
[WhiteElo "2492"]
[BlackElo "2319"]
[Result "1-0"]
[Round "06"]
[TimeControl "180+1"]
[Date "2021.09.28"]
[WhiteClock "0:00:45"]
[BlackClock "0:00:03"]

1. d4 {[%clk 0:03:00]}  b6 {[%clk 0:02:42]} 2. c4 {[%clk 0:02:57]}  Bb7 {[%clk 0:02:42]} 3. Nc3 {[%clk 0:02:57]}  Nf6 {[%clk 0:02:42]} 4. Qc2 {[%clk 0:02:56]}  d5 {[%clk 0:02:41]} 5. cxd5 {[%clk 0:02:56]}  Nxd5 {[%clk 0:02:42]} 6. Nf3 {[%clk 0:02:56]}  e6 {[%clk 0:02:42]} 7. e4 {[%clk 0:02:56]}  Nxc3 {[%clk 0:02:42]} 8. bxc3 {[%clk 0:02:57]}  Be7 {[%clk 0:02:43]} 9. Bd3 {[%clk 0:02:57]}  c5 {[%clk 0:02:41]} 10. O-O {[%clk 0:02:55]}  O-O {[%clk 0:02:39]} 11. d5 {[%clk 0:02:43]}  Nd7 {[%clk 0:02:33]} 12. c4 {[%clk 0:02:42]}  Bf6 {[%clk 0:02:29]} 13. Rb1 {[%clk 0:02:41]}  Ne5 {[%clk 0:02:26]} 14. Nxe5 {[%clk 0:02:40]}  Bxe5 {[%clk 0:02:27]} 15. f4 {[%clk 0:02:27]}  Bd4+ {[%clk 0:02:28]} 16. Kh1 {[%clk 0:02:28]}  e5 {[%clk 0:02:28]} 17. f5 {[%clk 0:02:26]}  a6 {[%clk 0:02:11]} 18. f6 {[%clk 0:02:19]}  gxf6 {[%clk 0:02:01]} 19. Bh6 {[%clk 0:02:16]}  Re8 {[%clk 0:01:57]} 20. Qe2 {[%clk 0:02:12]}  Kh8 {[%clk 0:01:55]} 21. Qh5 {[%clk 0:02:12]}  Qe7 {[%clk 0:01:37]} 22. Rxb6 {[%clk 0:02:09]}  Rg8 {[%clk 0:01:17]} 23. Rbxf6 {[%clk 0:02:07]}  Bc8 {[%clk 0:01:10]} 24. Rxf7 {[%clk 0:02:06]}  Bg4 {[%clk 0:01:10]} 25. Rxe7 {[%clk 0:01:39]}  Bxh5 {[%clk 0:01:10]} 26. Rb1 {[%clk 0:01:39]}  Rg6 {[%clk 0:01:02]} 27. Bd2 {[%clk 0:01:26]}  Rf6 {[%clk 0:00:31]} 28. Bg5 {[%clk 0:01:00]}  Rg6 {[%clk 0:00:24]} 29. Bh4 {[%clk 0:00:53]}  Bf3 {[%clk 0:00:10]} 30. gxf3 {[%clk 0:00:49]}  Rag8 {[%clk 0:00:11]} 31. Bg3 {[%clk 0:00:49]}  h5 {[%clk 0:00:11]} 32. Rbb7 {[%clk 0:00:47]}  Rh6 {[%clk 0:00:02]} 33. Bxe5+ {[%clk 0:00:45]}  Bxe5 {[%clk 0:00:02]} 34. Rxe5 {[%clk 0:00:46]}  Rhg6 {[%clk 0:00:03]} 35. Rxh5+ {[%clk 0:00:45]} 1-0


[Site "https://www.chess.com"]